bitfinex/quotes_BTCUSD_20260103
["timestamp","ask_amount","ask_price","bid_price","bid_amount"]
[1767421727234,0.01111568,89963.0,89959.0,0.01111617]
[1767421727444,0.01111568,89963.0,89959.0,0.05942442]
[1767421727645,0.01111568,89963.0,89959.0,0.04830825]
[1767421728052,0.01111555,89964.0,89959.0,0.05942442]
[1767421728257,0.01111568,89963.0,89959.0,0.04830825]
[1767421728669,0.01111568,89963.0,89959.0,0.05942442]
[1767421728875,0.01111518,89967.0,89963.0,0.000999]
[1767421729062,0.01111493,89969.0,89964.0,0.01111555]
[1767421730368,0.01111493,89969.0,89965.0,0.01111543]
[1767421730528,0.01111493,89969.0,89964.0,0.01111555]
[1767421732835,0.01111493,89969.0,89964.0,0.0594238]
[1767421733415,0.01111493,89969.0,89965.0,0.01111543]
[1767421733613,0.01111506,89968.0,89964.0,0.04830825]
[1767421733955,0.01111493,89969.0,89964.0,0.0594238]
[1767421734780,0.01111506,89968.0,89964.0,0.04830825]
[1767421734979,0.01111493,89969.0,89964.0,0.0594238]
[1767421735925,0.01153975,89973.0,89969.0,0.000999]
[1767421736132,0.02223419,89975.0,89971.0,0.04830825]
[1767421736305,0.01111395,89977.0,89971.0,0.04830825]
[1767421736480,0.01111395,89977.0,89972.0,0.05942281]
[1767421736681,0.01111407,89976.0,89972.0,0.04830825]
[1767421737092,0.01111407,89976.0,89973.0,0.04830825]
[1767421739143,0.06668484,89976.0,89973.0,0.04830825]
[1767421742142,0.01111419,89975.0,89971.0,0.04958812]
[1767421742343,0.01111432,89974.0,89971.0,0.04958812]
[1767421743692,0.01111493,89969.0,89966.0,0.06070812]
[1767421743969,0.01111481,89970.0,89966.0,0.06070812]
[1767421744678,0.01111481,89970.0,89966.0,0.04958812]
[1767421745202,0.01111493,89969.0,89966.0,0.04958812]
[1767421745606,0.01111481,89970.0,89966.0,0.04958812]
[1767421745809,0.01111493,89969.0,89966.0,0.04958812]
[1767421746345,0.01111518,89967.0,89964.0,0.00049721]
[1767421747109,0.05557696,89966.0,89964.0,0.00049721]
[1767421749071,0.01111518,89967.0,89964.0,0.00049721]
[1767421749806,0.05557655,89966.0,89964.0,0.00049721]
[1767421755401,0.01111518,89967.0,89966.0,0.000999]
[1767421755627,0.01111518,89967.0,89964.0,0.00049721]
[1767421756414,0.01011618,89967.0,89964.0,0.00049721]
[1767421757260,0.00937431,89967.0,89964.0,0.00049721]
[1767421758930,0.05557655,89966.0,89964.0,0.00049721]
[1767421759161,0.05557655,89966.0,89964.0,2.1e-07]
[1767421761095,0.00937431,89967.0,89964.0,2.1e-07]
[1767421765035,0.01111382,89978.0,89972.0,0.01111456]
[1767421765271,0.01112,89979.0,89976.0,0.04958812]
[1767421765470,0.01112,89981.0,89976.0,0.06070219]
[1767421765677,0.01111333,89982.0,89977.0,0.04958812]
[1767421765678,0.02223333,89982.0,89977.0,0.04958812]
[1767421765826,0.01112,89982.0,89977.0,0.06070207]
[1767421766031,0.01112,89982.0,89978.0,0.01111382]
[1767421766232,0.02223333,89982.0,89978.0,0.01111382]
[1767421766893,0.01111283,89986.0,89983.0,0.04958812]
[1767421767245,0.06667746,89986.0,89983.0,0.04958812]
[1767421768025,0.01111283,89986.0,89983.0,0.04958812]
[1767421769300,0.06667746,89986.0,89983.0,0.04958812]
[1767421769507,0.06667746,89986.0,89983.0,0.04908612]
[1767421770264,0.02223271,89987.0,89983.0,0.04908612]
[1767421770514,0.01112,89987.0,89983.0,0.04908612]
[1767421770728,0.01111382,89978.0,89973.0,0.01111444]
[1767421771373,0.01111382,89978.0,89974.0,0.02223432]
[1767421771594,0.01111382,89978.0,89974.0,0.01112]
[1767421771859,0.01111395,89977.0,89974.0,0.01112]
[1767421772076,0.01111382,89978.0,89974.0,0.01112]
[1767421772522,0.01111382,89978.0,89974.0,0.02223432]
[1767421772952,0.0111137,89979.0,89974.0,0.02223432]
[1767421773379,0.0111137,89979.0,89974.0,0.05994568]
[1767421773986,0.01111382,89978.0,89974.0,0.07106]
[1767421774203,0.0111137,89979.0,89974.0,0.07106]
[1767421774551,0.0111137,89979.0,89975.0,0.01111419]
[1767421774966,0.01111382,89978.0,89974.0,0.05994568]
[1767421775170,0.01111382,89978.0,89974.0,0.07106]
[1767421775372,0.0111137,89979.0,89974.0,0.07106]
[1767421775577,0.0111137,89979.0,89975.0,0.04882568]
[1767421775981,0.0111137,89979.0,89975.0,0.05993987]
[1767421776495,0.0111137,89979.0,89975.0,0.04882568]
[1767421776698,0.0111137,89979.0,89974.0,0.01112]
[1767421776699,0.01111382,89978.0,89974.0,0.01112]
[1767421776907,0.0111137,89979.0,89974.0,0.02223432]
[1767421777510,0.01111382,89978.0,89974.0,0.02223432]
[1767421777714,0.0111137,89979.0,89974.0,0.02223432]
[1767421777921,0.0111137,89979.0,89975.0,0.01111419]
[1767421778183,0.0111137,89979.0,89974.0,0.02223432]
[1767421779472,0.0111137,89979.0,89974.0,0.07106]
[1767421779903,0.0111137,89979.0,89975.0,0.01111419]
[1767421780317,0.0111137,89979.0,89975.0,0.05993987]
[1767421781557,0.06668333,89978.0,89975.0,0.04882568]
[1767421782011,0.01111382,89978.0,89975.0,0.04882568]
[1767421782948,0.01111358,89980.0,89978.0,0.000999]
[1767421783152,0.01111358,89980.0,89975.0,0.05993987]
[1767421784775,0.0111137,89979.0,89975.0,0.04882568]
[1767421784978,0.01111358,89980.0,89975.0,0.05993987]
[1767421785179,0.01111345,89981.0,89976.0,0.05993975]
[1767421785495,0.01111358,89980.0,89976.0,0.04882568]
[1767421785717,0.01111345,89981.0,89976.0,0.05993975]
[1767421786496,0.06668034,89982.0,89977.0,0.01111395]
[1767421787211,0.01111345,89981.0,89976.0,0.05993975]
[1767421788220,0.01111358,89980.0,89976.0,0.04882568]
[1767421788590,0.01111358,89980.0,89976.0,0.05993975]
[1767421789417,0.01111345,89981.0,89976.0,0.05993975]
[1767421792325,0.01111345,89981.0,89975.0,0.01111419]
[1767421792326,0.0111137,89979.0,89974.0,0.01111432]
[1767421792472,0.01111358,89980.0,89975.0,0.05993987]
[1767421796887,0.0111137,89979.0,89975.0,0.04882568]
[1767421797052,0.01111358,89980.0,89975.0,0.05993987]
[1767421798080,0.0111137,89979.0,89975.0,0.04882568]
[1767421799221,0.01111358,89980.0,89975.0,0.05993987]
[1767421800798,0.06668118,89981.0,89976.0,0.04553588]
[1767421800997,0.01111345,89981.0,89976.0,0.05664995]
[1767421801501,0.06668148,89980.0,89974.0,0.01111432]
[1767421801660,0.01111358,89980.0,89975.0,0.05665007]
[1767421802538,0.01111358,89980.0,89976.0,0.01111407]
[1767421802741,0.01111345,89981.0,89976.0,0.01111407]
[1767421803346,0.01111345,89981.0,89977.0,0.01111395]
[1767421804028,0.01111345,89981.0,89976.0,0.01111407]
[1767421805233,0.06667962,89983.0,89976.0,0.01111407]
[1767421805809,0.01111358,89980.0,89976.0,0.01111407]
[1767421806217,0.01111358,89980.0,89975.0,0.04553588]
[1767421806421,0.0111137,89979.0,89975.0,0.05665007]
[1767421807074,0.0111137,89979.0,89975.0,0.04553588]
[1767421808674,0.0111137,89979.0,89975.0,0.05665007]
[1767421810270,0.01111358,89980.0,89975.0,0.05665007]
[1767421811231,0.0111137,89979.0,89975.0,0.04553588]
[1767421811741,0.01111382,89978.0,89975.0,0.04553588]
[1767421812798,0.0111137,89979.0,89975.0,0.04553588]
[1767421813620,0.0111137,89979.0,89975.0,0.05665007]
[1767421813770,0.01111358,89980.0,89975.0,0.05665007]
[1767421813969,0.0111137,89979.0,89975.0,0.05665007]
[1767421814804,0.0111137,89979.0,89975.0,0.04553588]
[1767421815011,0.01111345,89981.0,89979.0,0.000999]
[1767421815543,0.01111345,89981.0,89975.0,0.11222064]
[1767421815741,0.01111345,89981.0,89977.0,0.01111395]
[1767421816656,0.01111345,89981.0,89976.0,0.01111407]
[1767421816957,0.0777998,89983.0,89978.0,0.01111382]
[1767421817156,0.01111345,89981.0,89977.0,0.01111395]
[1767421817451,0.01111333,89982.0,89977.0,0.01111395]
[1767421818234,0.01111358,89980.0,89975.0,0.11222064]
[1767421818387,0.01111358,89980.0,89976.0,0.01111407]
[1767421818587,0.0111137,89979.0,89975.0,0.04553588]
[1767421818845,0.01111382,89978.0,89975.0,0.04553588]
[1767421819512,0.06668332,89978.0,89975.0,0.04553588]
[1767421819710,0.05557222,89973.0,89971.0,0.04553588]
[1767421820296,0.01111432,89974.0,89971.0,0.04553588]
[1767421820495,0.01111419,89975.0,89971.0,0.04553588]
[1767421820725,0.01111432,89974.0,89971.0,0.04553588]
[1767421822291,0.01111395,89977.0,89971.0,0.04553588]
[1767421822815,0.01111407,89976.0,89971.0,0.04553588]
[1767421823218,0.01111432,89974.0,89971.0,0.04553588]
[1767421823886,0.01111407,89976.0,89971.0,0.04553588]
[1767421824180,0.01111432,89974.0,89971.0,0.04553588]
[1767421824432,0.06668594,89974.0,89971.0,0.04553588]
[1767421824650,0.05557398,89971.0,89965.0,0.01111543]
[1767421825049,0.05557398,89971.0,89964.0,0.01111576]
[1767421825244,0.01111481,89970.0,89964.0,0.01111576]
[1767421825481,0.01111481,89970.0,89965.0,0.01111543]
[1767421825681,0.01111518,89967.0,89964.0,2.1e-07]
[1767421826362,0.01111506,89968.0,89964.0,2.1e-07]
[1767421826500,0.01111506,89968.0,89964.0,0.01111576]
[1767421826704,0.01111493,89969.0,89964.0,0.01111576]
[1767421827341,0.01111506,89968.0,89964.0,2.1e-07]
[1767421827577,0.01111493,89969.0,89964.0,2.1e-07]
[1767421827809,0.01111506,89968.0,89964.0,2.1e-07]
[1767421828017,0.06668936,89970.0,89964.0,0.06669325]
[1767421828018,0.01111481,89970.0,89964.0,0.06669325]
[1767421828233,0.01111506,89968.0,89964.0,0.01111576]
[1767421828455,0.01111506,89968.0,89964.0,2.1e-07]
[1767421828706,0.01111506,89968.0,89964.0,0.01111576]
[1767421828929,0.01111493,89969.0,89965.0,0.01111543]
[1767421829344,0.01111493,89969.0,89964.0,0.01111576]
[1767421829550,0.01111493,89969.0,89964.0,2.1e-07]
[1767421829551,0.01111518,89967.0,89964.0,2.1e-07]
[1767421829753,0.01111506,89968.0,89964.0,0.01111576]
[1767421829975,0.01111506,89968.0,89964.0,2.1e-07]
[1767421830182,0.01111493,89969.0,89964.0,0.01111576]
[1767421830795,0.01111506,89968.0,89964.0,2.1e-07]
[1767421830999,0.01111481,89970.0,89965.0,0.01111543]
[1767421831271,0.01112,89971.0,89970.0,0.000999]
[1767421831497,0.01111481,89970.0,89966.0,0.01111531]
[1767421831703,0.02223469,89971.0,89966.0,0.01111531]
[1767421832123,0.02223469,89971.0,89967.0,0.01111518]
[1767421832334,0.010121,89971.0,89967.0,0.01111518]
[1767421832782,0.02123569,89971.0,89966.0,0.01111531]
[1767421833195,0.01111481,89970.0,89965.0,0.01111543]
[1767421835331,0.01111493,89969.0,89965.0,0.01111543]
[1767421835952,0.01111493,89969.0,89964.0,0.01111576]
[1767421836163,0.02123569,89971.0,89966.0,0.01111531]
[1767421836379,0.01111481,89970.0,89965.0,0.01111543]
[1767421836816,0.000999,89965.0,89964.0,2.1e-07]
[1767421837027,0.01111518,89967.0,89964.0,2.1e-07]
[1767421837726,0.05557701,89966.0,89964.0,2.1e-07]
[1767421862888,0.01111506,89968.0,89964.0,2.1e-07]
[1767421863099,0.06669111,89967.0,89964.0,2.1e-07]
[1767421864523,0.05557689,89966.0,89964.0,2.1e-07]
[1767421866119,0.06669111,89967.0,89964.0,2.1e-07]
[1767421866777,0.01112,89966.0,89964.0,2.1e-07]
[1767421874253,0.01111481,89970.0,89964.0,2.1e-07]
[1767421874460,0.01112,89969.0,89965.0,0.01111543]
[1767421875011,0.01112,89969.0,89964.0,0.01111576]
[1767421875535,0.01111506,89968.0,89964.0,2.1e-07]
[1767421875706,0.01111518,89967.0,89964.0,2.1e-07]
[1767421875908,0.01111506,89968.0,89964.0,2.1e-07]
[1767421876453,0.01111518,89967.0,89964.0,2.1e-07]
[1767421876899,0.01111506,89968.0,89964.0,2.1e-07]
[1767421879179,0.06669114,89967.0,89964.0,2.1e-07]
[1767421881300,0.01111506,89968.0,89964.0,2.1e-07]
[1767421881523,0.01111506,89968.0,89964.0,0.01111576]
[1767421881646,0.01111518,89967.0,89964.0,2.1e-07]
[1767421881853,0.01111506,89968.0,89964.0,0.01111576]
[1767421882053,0.01111506,89968.0,89958.0,0.05558104]
[1767421882054,0.04767211,89967.0,89939.0,0.05556]
[1767421882272,0.01111629,89958.0,89955.0,4.007e-05]
[1767421882514,0.0555826,89957.0,89955.0,4.007e-05]
[1767421883894,0.06669832,89958.0,89955.0,4.007e-05]
[1767421884239,0.05558256,89957.0,89955.0,4.007e-05]
[1767421894609,0.05558256,89957.0,89949.0,1e-08]
[1767421894610,0.05558643,89950.0,89949.0,1e-08]
[1767421894805,0.0111179,89945.0,89940.0,0.01111852]
[1767421894977,0.01111827,89942.0,89937.0,0.04679892]
[1767421895196,0.01111827,89942.0,89937.0,0.05791781]
[1767421895579,0.01111827,89942.0,89937.0,0.04679892]
[1767421895788,0.01111852,89940.0,89937.0,0.04679892]
[1767421895993,0.01111839,89941.0,89937.0,0.04679892]
[1767421896358,0.02223815,89943.0,89938.0,0.05791769]
[1767421896944,0.01111839,89941.0,89938.0,0.04679892]
[1767421897895,0.0667108,89941.0,89938.0,0.04679892]
[1767421898561,0.05559306,89940.0,89938.0,0.04679892]
[1767421899240,0.0667108,89941.0,89938.0,0.04679892]
[1767421899605,0.05559306,89940.0,89938.0,0.04579992]
[1767421900142,0.0667108,89941.0,89938.0,0.04579992]
[1767421900963,0.01112,89943.0,89938.0,0.04579992]
[1767421901229,0.01011939,89941.0,89938.0,0.04579992]
[1767421901403,0.05559037,89944.0,89938.0,0.04579992]
[1767421901606,0.01111827,89942.0,89938.0,0.04579992]
[1767421901763,0.02223815,89943.0,89942.0,0.04679892]
[1767421902107,0.02223815,89943.0,89939.0,0.04679892]
[1767421902267,0.01112,89943.0,89939.0,0.05791756]
[1767421902624,0.01111827,89942.0,89939.0,0.04679892]
[1767421902945,0.02223815,89943.0,89939.0,0.04679892]
[1767421903149,0.02223815,89943.0,89939.0,0.05791756]
[1767421903344,0.01112,89942.0,89939.0,0.04679892]
[1767421903988,0.01112,89942.0,89939.0,0.05791756]
[1767421904860,0.01112,89942.0,89939.0,0.04679892]
[1767421905636,0.02223827,89942.0,89939.0,0.04679892]
[1767421905844,0.01112,89942.0,89939.0,0.04679892]
[1767421908151,0.01112,89942.0,89939.0,0.05791756]
[1767421908356,0.01112,89942.0,89939.0,0.04679892]
[1767421909758,0.01112,89942.0,89939.0,0.05791756]
[1767421910301,0.01112,89942.0,89939.0,0.04679892]
[1767421910466,0.01112,89942.0,89939.0,0.05791756]
[1767421910663,0.01112,89942.0,89940.0,0.05559261]
[1767421910876,0.01112,89942.0,89940.0,0.10239153]
[1767421911073,0.01112,89942.0,89941.0,0.04679892]
[1767421911274,0.22887515,89950.0,89945.0,0.04679892]
[1767421911275,0.01116524,89950.0,89945.0,0.04679892]
[1767421911624,0.01112,89949.0,89947.0,0.04679892]
[1767421911935,0.01112,89949.0,89945.0,0.0111179]
[1767421912354,0.02223741,89949.0,89945.0,0.0111179]
[1767421912507,0.01112,89949.0,89945.0,0.0111179]
[1767421912708,0.01112,89949.0,89946.0,0.01111778]
[1767421912875,0.01112,89949.0,89945.0,0.0111179]
[1767421913075,0.01112,89949.0,89946.0,0.01111778]
[1767421914129,0.02223741,89949.0,89944.0,0.01111802]
[1767421914557,0.01112,89949.0,89946.0,0.01111778]
[1767421914783,0.01112,89949.0,89947.0,0.05558829]
[1767421914978,0.010121,89949.0,89947.0,0.05558829]
[1767421915924,0.010121,89949.0,89947.0,0.10238721]
[1767421916100,0.010121,89949.0,89948.0,0.04679892]
[1767421916465,4.796e-05,89950.0,89949.0,0.04679892]
[1767421916670,4.796e-05,89950.0,89949.0,0.03657416]
[1767421920694,4.796e-05,89950.0,89948.0,0.05558709]
[1767421921109,4.796e-05,89950.0,89948.0,0.10388801]
[1767421922737,4.796e-05,89950.0,89948.0,0.10288901]
[1767421922888,4.796e-05,89950.0,89948.0,0.05458809]
[1767421929089,4.796e-05,89950.0,89948.0,0.04830092]
[1767421929488,9.6e-07,89950.0,89948.0,0.04830092]
[1767421930323,9.6e-07,89950.0,89949.0,0.04830092]
[1767421930522,9.6e-07,89950.0,89949.0,0.04825392]
[1767421935723,9.6e-07,89950.0,89944.0,0.06670756]
[1767421935932,0.01111765,89947.0,89943.0,0.01111815]
[1767421936165,9.6e-07,89950.0,89944.0,0.01111802]
[1767421936421,9.6e-07,89950.0,89946.0,0.01111778]
[1767421936683,9.6e-07,89950.0,89947.0,0.01111765]
[1767421938532,9.6e-07,89950.0,89948.0,0.10388803]
[1767421940133,9.6e-07,89950.0,89948.0,0.05558711]
[1767421940338,9.6e-07,89950.0,89948.0,0.10388803]
[1767421940494,9.6e-07,89950.0,89949.0,0.04830092]
[1767421942791,9.6e-07,89950.0,89948.0,0.05558711]
[1767421943092,9.6e-07,89950.0,89949.0,0.04830092]
[1767421943598,0.4,90130.0,89971.0,0.04830092]
[1767421943599,0.00049381,89972.0,89971.0,0.04830092]
[1767421943800,0.01112,89984.0,89972.0,0.05941548]
[1767421943801,0.01111345,89981.0,89972.0,0.05941548]
[1767421943946,0.01111333,89982.0,89974.0,0.01111432]
[1767421944296,0.06668561,89984.0,89981.0,0.01111345]
[1767421944297,0.01112,89984.0,89981.0,0.01111345]
[1767421944498,0.0001514,89986.0,89983.0,0.06667926]
[1767421944726,0.00025561,89986.0,89983.0,0.01111321]
[1767421946353,0.00025561,89986.0,89984.0,0.05556543]
[1767421948330,0.00025561,89986.0,89984.0,0.10386635]
[1767421948698,0.00025561,89986.0,89983.0,0.01111321]
[1767421949787,0.00025561,89986.0,89983.0,0.06667872]
[1767421951010,0.00025561,89986.0,89984.0,0.05556488]
[1767421952214,6.1e-07,89986.0,89984.0,0.05556488]
[1767421952680,6.1e-07,89986.0,89982.0,0.0555666]
[1767421952855,0.000255,89984.0,89982.0,0.0555666]
[1767421953400,6.1e-07,89986.0,89982.0,0.0555666]
[1767421954098,6.1e-07,89986.0,89982.0,0.06642493]
[1767421954374,6.1e-07,89986.0,89982.0,0.01111333]
[1767421954931,0.01111344,89986.0,89982.0,0.01111333]
[1767421955136,6.1e-07,89986.0,89983.0,0.01111321]
[1767421957738,6.1e-07,89986.0,89984.0,0.05556543]
[1767421958339,6.1e-07,89986.0,89985.0,0.04675713]
[1767421959075,6.1e-07,89986.0,89985.0,0.03305937]
[1767421959983,6.1e-07,89986.0,89984.0,0.05556543]
[1767421965476,6.1e-07,89986.0,89984.0,0.10242254]
[1767421968857,6.1e-07,89986.0,89985.0,0.04685711]
[1767421993983,0.05555606,90000.0,89993.0,0.01111197]
[1767421994181,0.01112,89995.0,89994.0,0.06013359]
[1767421994564,8.81e-05,89999.0,89995.0,0.01111172]
[1767421994748,8.81e-05,89999.0,89997.0,0.10457868]
[1767421996353,8.81e-05,89999.0,89998.0,0.04902174]
[1767421996549,1e-07,89999.0,89998.0,0.04902174]
[1767421997356,1e-08,90003.0,90002.0,0.05555432]
[1767421997592,1e-08,90003.0,90002.0,0.05546632]
[1767422002547,1e-08,90005.0,90004.0,0.05555308]
[1767422005761,1e-08,90005.0,90004.0,0.10457482]
[1767422005972,0.01106828,90011.0,90006.0,0.01111037]
[1767422006209,0.01110975,90011.0,90006.0,0.01111037]
[1767422006633,0.02222962,90012.0,90007.0,0.01111024]
[1767422009317,0.01110975,90011.0,90006.0,0.01111037]
[1767422009524,0.01110975,90011.0,90005.0,0.01111049]
[1767422009697,0.01110975,90011.0,90007.0,0.01111024]
[1767422009903,0.02222962,90012.0,90007.0,0.01111024]
[1767422010283,0.02222962,90012.0,90008.0,0.01111012]
[1767422010692,0.01112,90012.0,90007.0,0.05711824]
[1767422010888,0.01112,90017.0,90014.0,0.01110938]
[1767422011109,0.01112,90017.0,90014.0,0.046008]
[1767422011317,0.02222901,90017.0,90014.0,0.046008]
[1767422012826,0.02222901,90017.0,90015.0,0.12437811]
[1767422013283,0.01112,90017.0,90015.0,0.12437811]
[1767422015576,0.01112,90019.0,90016.0,0.01110913]
[1767422015788,0.01112,90019.0,90015.0,0.18149536]
[1767422016097,0.01112,90019.0,90015.0,0.17038611]
[1767422016098,0.02222876,90019.0,90015.0,0.17038611]
[1767422016333,0.01110888,90018.0,90015.0,0.12437811]
[1767422016553,0.02222876,90019.0,90015.0,0.12437811]
[1767422017214,0.02222876,90019.0,90015.0,0.13548736]
[1767422017363,0.02222876,90019.0,90015.0,0.12437811]
[1767422020284,0.01112,90019.0,90015.0,0.13548736]
[1767422020484,0.02222876,90019.0,90015.0,0.12437811]
[1767422020920,0.02222876,90019.0,90015.0,0.13548736]
[1767422021120,0.05554091,90024.0,90019.0,0.047007]
[1767422021621,0.0001514,90023.0,90019.0,0.05711676]
[1767422022040,0.01125967,90023.0,90018.0,0.01110888]
[1767422022239,0.01110839,90022.0,90017.0,0.05711701]
[1767422022476,0.01110839,90022.0,90018.0,0.01110888]
[1767422023194,0.01125967,90023.0,90018.0,0.05711688]
[1767422024793,0.01110839,90022.0,90018.0,0.046008]
[1767422026695,0.01125967,90023.0,90018.0,0.05711688]
[1767422027284,0.0666493,90024.0,90023.0,0.046008]
[1767422027710,0.01110802,90025.0,90024.0,0.000999]
[1767422028353,0.01110802,90025.0,90020.0,0.046008]
[1767422028354,0.01110827,90023.0,90020.0,0.046008]
[1767422028778,0.06664873,90025.0,90020.0,0.046008]
[1767422028779,0.01110814,90024.0,90020.0,0.046008]
[1767422029837,0.01110827,90023.0,90020.0,0.046008]
[1767422030268,0.01110827,90023.0,90019.0,0.01110876]
[1767422030490,0.01110827,90023.0,90020.0,0.046008]
[1767422031100,0.01110827,90023.0,90018.0,0.01110888]
[1767422031293,0.01110827,90023.0,90019.0,0.01110876]
[1767422031637,0.07776797,90026.0,90020.0,0.05711664]
[1767422031871,0.01148032,90026.0,90022.0,0.01110839]
[1767422032083,0.05488488,90026.0,90020.0,0.01110864]
[1767422032278,0.02258822,90026.0,90020.0,0.01110864]
[1767422032480,0.01148032,90026.0,90021.0,0.01110851]
[1767422032781,0.02258822,90026.0,90021.0,0.05711651]
[1767422033184,0.02258822,90026.0,90022.0,0.05711639]
[1767422033393,0.02258822,90026.0,90022.0,0.046008]
[1767422035077,0.02258822,90026.0,90021.0,0.01110851]
[1767422035258,0.02258822,90026.0,90022.0,0.046008]
[1767422035259,0.01110802,90025.0,90022.0,0.046008]
[1767422035695,0.00036032,90026.0,90025.0,0.000999]
[1767422035958,0.00036032,90026.0,90022.0,0.05711639]
[1767422036300,0.01110802,90025.0,90022.0,0.046008]
[1767422036502,0.0111079,90026.0,90022.0,0.046008]
[1767422036731,0.0111079,90026.0,90021.0,0.01110851]
[1767422036962,0.01085275,90027.0,90022.0,0.05711639]
[1767422037191,0.01096078,90027.0,90022.0,0.05711639]
[1767422037688,0.01096078,90027.0,90022.0,0.01110839]
[1767422038053,0.01096078,90027.0,90022.0,0.05711639]
[1767422038655,0.01096078,90027.0,90022.0,0.01110839]
[1767422039093,0.01096078,90027.0,90023.0,0.046008]
[1767422040569,0.00010803,90027.0,90024.0,0.01110814]
[1767422040919,3e-08,90027.0,90024.0,0.05961032]
[1767422042096,3e-08,90027.0,90024.0,0.01110814]
[1767422042401,3e-08,90027.0,90024.0,0.05961032]
[1767422042609,3e-08,90030.0,90027.0,0.04850218]
[1767422043396,3e-08,90030.0,90027.0,0.05960995]
[1767422043639,3e-08,90030.0,90027.0,0.04850218]
[1767422044019,3e-08,90030.0,90027.0,0.05960995]
[1767422044790,3e-08,90030.0,90027.0,0.04850218]
[1767422046175,0.01110743,90030.0,90027.0,0.04850218]
[1767422046673,0.000108,90027.0,90025.0,0.0596102]
[1767422047058,0.01110743,90030.0,90025.0,0.0596102]
[1767422047459,3e-08,90030.0,90026.0,0.0111079]
[1767422049714,0.01110743,90030.0,90025.0,0.0596102]
[1767422050442,3e-08,90030.0,90026.0,0.0111079]
[1767422050842,3e-08,90030.0,90026.0,0.05961008]
[1767422051053,3e-08,90030.0,90027.0,0.01110777]
[1767422054428,3e-08,90030.0,90026.0,0.05961008]
[1767422055171,0.01110743,90030.0,90026.0,0.04850218]
[1767422055308,3e-08,90030.0,90026.0,0.05961008]
[1767422057492,3e-08,90030.0,90027.0,0.01110777]
[1767422057815,3e-08,90030.0,90026.0,0.05961008]
[1767422058949,3e-08,90030.0,90027.0,0.01110777]
[1767422060774,3e-08,90030.0,90029.0,0.05553766]
[1767422061199,3e-08,90030.0,90029.0,0.10403984]
[1767422064091,3e-08,90030.0,90029.0,0.05553766]
[1767422064261,0.01107782,90034.0,90031.0,0.01110728]
[1767422067439,0.01107782,90034.0,90031.0,0.06664327]
[1767422067706,0.01018682,90034.0,90031.0,0.01110728]
[1767422067916,0.000108,90031.0,90030.0,0.06664426]
[1767422068067,6.678e-05,90031.0,90030.0,0.06664426]
[1767422068275,0.02129373,90034.0,90029.0,0.05960971]
[1767422068657,0.02129373,90034.0,90029.0,0.01110753]
[1767422068868,0.02129373,90034.0,90030.0,0.0111074]
[1767422069104,0.01110703,90033.0,90028.0,0.01110765]
[1767422069330,0.01110716,90032.0,90027.0,0.01110777]
[1767422069549,0.01110703,90033.0,90028.0,0.01110765]
[1767422069722,0.02129373,90034.0,90029.0,0.01110753]
[1767422071096,0.01110703,90033.0,90028.0,0.01110765]
[1767422071509,0.02129373,90034.0,90029.0,0.01110753]
[1767422072400,0.01110703,90033.0,90027.0,0.01110777]
[1767422072645,0.01110703,90033.0,90028.0,0.01110765]
[1767422073724,0.02129373,90034.0,90029.0,0.01110753]
[1767422074724,0.02129373,90034.0,90030.0,0.0111074]
[1767422075066,0.02129373,90034.0,90029.0,0.01110753]
[1767422075218,0.01110703,90033.0,90028.0,0.01110765]
[1767422075627,0.01110703,90033.0,90029.0,0.01110753]
[1767422076431,0.02129373,90034.0,90029.0,0.01110753]
[1767422076942,0.01110703,90033.0,90028.0,0.01110765]
[1767422077170,0.06664129,90035.0,90029.0,0.01110753]
[1767422077399,0.06664129,90035.0,90030.0,0.0111074]
[1767422077837,0.01110691,90034.0,90028.0,0.01110765]
[1767422078964,0.01110691,90034.0,90029.0,0.01110753]
[1767422079318,0.01110703,90033.0,90028.0,0.01110765]
[1767422079679,0.01110716,90032.0,90027.0,0.05683157]
[1767422080475,0.01110716,90032.0,90028.0,0.01110765]
[1767422081315,0.01110716,90032.0,90027.0,0.05683157]
[1767422081654,0.01110716,90032.0,90028.0,0.01110765]
[1767422082468,0.01110716,90032.0,90027.0,0.05683157]
[1767422085362,0.01110728,90031.0,90027.0,0.0457238]
[1767422086494,0.0111074,90030.0,90027.0,0.0457238]
[1767422086640,0.01110728,90031.0,90027.0,0.0457238]
[1767422088007,0.0111074,90030.0,90025.0,0.05683182]
[1767422088208,0.0111074,90030.0,90026.0,0.0568317]
[1767422088440,0.0111074,90030.0,90026.0,0.0457238]
[1767422088618,0.01110716,90032.0,90027.0,0.05553889]
[1767422088836,0.01110716,90032.0,90027.0,0.01110777]
[1767422089455,0.01110703,90033.0,90028.0,0.01110765]
[1767422091033,0.01110691,90034.0,90029.0,0.01110753]
[1767422091292,0.01110691,90034.0,90028.0,0.01110765]
[1767422091484,0.01110703,90033.0,90028.0,0.01110765]
[1767422091893,0.01110716,90032.0,90027.0,0.01110777]
[1767422092203,0.01110728,90031.0,90026.0,0.0568317]
[1767422092584,0.01110728,90031.0,90027.0,0.01110777]
[1767422094745,0.01110728,90031.0,90026.0,0.0568317]
[1767422095608,0.0111074,90030.0,90026.0,0.0457238]
[1767422095815,0.01110728,90031.0,90026.0,0.0568317]
[1767422097274,0.01110691,90034.0,90026.0,0.0568317]
[1767422097475,0.01110716,90032.0,90026.0,0.0457238]
[1767422097678,0.01110691,90034.0,90027.0,0.01110777]
[1767422097881,0.01110728,90031.0,90027.0,0.01110777]
[1767422098529,0.01110728,90031.0,90026.0,0.0568317]
[1767422098727,0.01110728,90031.0,90027.0,0.01110777]
[1767422100261,0.01110691,90034.0,90029.0,0.01110753]
[1767422100869,0.01110703,90033.0,90028.0,0.01110765]
[1767422101071,0.01110703,90033.0,90029.0,0.01110753]
[1767422101274,0.01110716,90032.0,90027.0,0.01110777]
[1767422101521,0.01110703,90033.0,90027.0,0.01110777]
[1767422101796,0.01110703,90033.0,90028.0,0.01110765]
[1767422102959,0.01110716,90032.0,90027.0,0.01110777]
[1767422103147,0.01110691,90034.0,90028.0,0.06664569]
[1767422103349,0.01110703,90033.0,90028.0,0.01110765]
[1767422103994,0.01110679,90035.0,90028.0,0.06664548]
[1767422104785,0.01110691,90034.0,90028.0,0.01110765]
[1767422104989,0.01110691,90034.0,90029.0,0.01110753]
[1767422105639,0.01110703,90033.0,90028.0,0.01110765]
[1767422106497,0.01110716,90032.0,90027.0,0.0666462]
[1767422107051,0.01110716,90032.0,90027.0,0.01110777]
[1767422107263,0.01110691,90034.0,90029.0,0.01110753]
[1767422107898,0.01110703,90033.0,90028.0,0.06664592]
[1767422108095,0.01110691,90034.0,90029.0,0.01110753]
[1767422109199,0.01110703,90033.0,90028.0,0.06664592]
[1767422109403,0.01110703,90033.0,90028.0,0.01110765]
[1767422109718,0.01110691,90034.0,90028.0,0.01110765]
[1767422109923,0.01110679,90035.0,90030.0,0.0111074]
[1767422110121,0.01110679,90035.0,90034.0,0.12437811]
[1767422111849,0.01112,90036.0,90034.0,0.12437811]
[1767422112174,0.010121,90036.0,90034.0,0.12437811]
[1767422114747,0.010121,90036.0,90034.0,0.08097405]
[1767422116350,0.01007844,90036.0,90034.0,0.08097405]